fUSD/lending_fUSD_20240324
["ID","MTS","AMOUNT","RATE_DAILY","PERIOD"]
[320328284,1711293041779,108095.13,0.00025309,30]
[320328299,1711293042719,-738.108,0.00017898,2]
[320328300,1711293042777,-886.14999955,0.00017898,2]
[320328301,1711293042799,-4491.72001492,0.00017898,2]
[320328302,1711293042838,-865.28497109,0.00017898,2]
[320328303,1711293042851,-1565.08937801,0.00017898,2]
[320328304,1711293042902,-1616.82999991,0.00017898,2]
[320328305,1711293042916,-766.00458432,0.00017898,2]
[320328306,1711293042929,-319.975,0.00017898,2]
[320328307,1711293043071,-1313.61241,0.00017898,2]
[320328308,1711293043084,-55491.39291048,0.00017898,2]
[320328309,1711293043095,-1487.62096218,0.00017898,2]
[320328310,1711293043107,-14172.75,0.00017898,2]
[320328311,1711293043118,-511.74477419,0.00017898,2]
[320328313,1711293043193,-258.2051307,0.00017898,2]
[320328315,1711293043206,-678.2780594,0.00017898,2]
[320328329,1711293045876,-2864.936772,0.00017898,2]
[320328330,1711293046044,-1446.46259274,0.00017898,2]
[320328331,1711293046058,-1787.1,0.00017898,2]
[320328332,1711293046071,-18214.41253113,0.00017898,2]
[320328333,1711293046100,-8849.56618415,0.00017898,2]
[320328534,1711293053305,252.44518057,0.00024,120]
[320328535,1711293067210,252.44518057,0.00024,120]
[320328536,1711293091200,188.7014289,0.00024,120]
[320328549,1711294015192,150.0,0.00011784,2]
[320328550,1711294015211,50.0,0.00011784,2]
[320329019,1711294169623,150.0,0.00011784,2]
[320329020,1711294169645,24.35437122,0.00011784,2]
[320329029,1711294232226,-378.97956956,0.00014819,2]
[320329030,1711294232504,-105.33546618,0.00014819,2]
[320329031,1711294232514,-1702.94888382,0.0001482,2]
[320329032,1711294232526,-1850.38020069,0.0001482,2]
[320329033,1711294232545,-622.87837046,0.0001482,2]
[320329034,1711294232555,-442.40962954,0.00014821,2]
[320329036,1711294232597,-269.60037046,0.00014821,2]
[320329037,1711294232606,-176.48157261,0.000149,2]
[320329038,1711294232616,-509.33243117,0.00014998,2]
[320329039,1711294232625,-2235.24775202,0.00015,2]
[320329040,1711294237898,-2764.24963325,0.00015,2]
[320329041,1711294237908,-173.522977,0.00015342,2]
[320329042,1711294237918,-173.522977,0.00016164,2]
[320329043,1711294237927,-1217.93391781,0.000165,2]
[320329044,1711294237937,-717.22,0.00016705,2]
[320329046,1711294237946,-250.0,0.00016712,2]
[320329048,1711294237955,-1019.02742683,0.00016756,2]
[320329050,1711294237967,-980.97257317,0.00016756,2]
[320329051,1711294237975,-232.88,0.00016756,2]
[320329052,1711294237984,-839.88,0.0001679,2]
[320329053,1711294237993,-282.78,0.00016848,2]
[320329054,1711294238002,-184.5,0.00016923,2]
[320329055,1711294238011,-160.06,0.00016983,2]
[320329056,1711294238021,-173.522977,0.00016986,2]
[320329057,1711294238030,-150.0,0.00016989,2]
[320329058,1711294238039,-712.01,0.00017085,2]
[320329059,1711294238048,-167.0,0.00017512,2]
[320329060,1711294238057,-150.0,0.00017741,2]
[320329061,1711294238066,-408.60922482,0.00017798,2]
[320329062,1711294238104,-281.92133872,0.00017798,2]
[320329063,1711294238119,-1765.0,0.00017798,2]
[320329064,1711294238131,-2303.32113646,0.00017798,2]
[320329065,1711294238140,-2973.36836354,0.00017798,2]
[320329066,1711294238225,-44595.47033646,0.00017798,2]
[320329067,1711294238234,-173.522977,0.00017808,2]
[320329068,1711294238244,-523.88993163,0.00017895,2]
[320329069,1711294238265,-321.47888014,0.00017895,2]
[320329070,1711294238274,-155.0,0.00017896,2]
[320329071,1711294238283,-333.801,0.00017897,2]
[320329072,1711294238292,-242.55627468,0.00017897,2]
[320329073,1711294238301,-572.52793975,0.00017897,2]
[320329074,1711294238310,-3000.0,0.00017898,2]
[320329075,1711294238319,-318.61844455,0.000179,2]
[320329076,1711294238328,-1048.61886083,0.000179,2]
[320329077,1711294238337,-1445.92657849,0.00017906,2]
[320329078,1711294238370,-410.54989438,0.00017906,2]
[320329083,1711294240012,-287.048,0.00017906,2]
[320329084,1711294240024,-658.90650005,0.00017906,2]
[320329085,1711294240036,-2175.75922445,0.00017906,2]
[320329086,1711294240045,-176.48157261,0.00017906,2]
[320329087,1711294240054,-314.02833491,0.00017906,2]
[320329088,1711294240063,-318.61844452,0.00017945,2]
[320329089,1711294240072,-238.6,0.00017968,2]
[320329090,1711294240081,-238.6,0.00017987,2]
[320329091,1711294240090,-318.61844452,0.00017992,2]
[320329092,1711294240099,-1320.14258758,0.00017996,2]
[320329093,1711294240108,-1396.8947,0.00017996,2]
[320329094,1711294240117,-1135.5135334,0.00017996,2]
[320329095,1711294240126,-324.45935913,0.00017997,5]
[320329096,1711294240137,-42592.7922981,0.00017997,2]
[320329097,1711294240146,-96265.22066725,0.00017998,2]
[320329098,1711294240172,-804.29,0.00017998,2]
[320329099,1711294240183,-235407.01182921,0.00017998,2]
[320329100,1711294240192,-1495818.67822134,0.00018,2]
[320329101,1711294240201,-238.6,0.00018006,2]
[320329102,1711294240211,-238.6,0.00018025,2]
[320329103,1711294240220,-318.61844452,0.00018039,2]
[320329104,1711294240228,-238.6,0.00018044,2]
[320329105,1711294240237,-238.6,0.00018063,2]
[320329106,1711294240248,-238.6,0.00018082,2]
[320329107,1711294240257,-318.61844452,0.00018086,2]
[320329108,1711294240266,-238.6,0.00018101,2]
[320329109,1711294240274,-238.6,0.00018119,2]
[320329110,1711294240283,-314.02833488,0.00018127,2]
[320329111,1711294240292,-318.61844452,0.00018133,2]
[320329112,1711294240300,-238.6,0.00018138,2]
[320329113,1711294240309,-238.6,0.00018157,2]
[320329114,1711294240521,-150.0,0.0001816,2]
[320329115,1711294240530,-238.6,0.00018176,2]
[320329116,1711294240539,-318.61844452,0.0001818,2]
[320329117,1711294240548,-1048.61886077,0.00018186,2]
[320329118,1711294240557,-238.6,0.00018195,2]
[320329119,1711294240567,-238.6,0.00018214,2]
[320329120,1711294240576,-318.61844452,0.00018227,2]
[320329121,1711294240584,-238.6,0.00018233,2]
[320329122,1711294240594,-800.0,0.00018247,2]
[320329123,1711294240602,-164.07,0.00018247,2]
[320329124,1711294240612,-238.6,0.00018252,2]
[320329125,1711294240622,-238.6,0.00018271,2]
[320329126,1711294240634,-318.61844452,0.00018274,2]
[320329127,1711294240643,-238.6,0.0001829,2]
[320329128,1711294240652,-238.6,0.00018309,2]
[320329129,1711294240661,-318.61844452,0.00018321,2]
[320329130,1711294240670,-238.6,0.00018327,2]
[320329131,1711294240679,-976.84061323,0.00018339,2]
[320329132,1711294240689,-314.02833488,0.00018349,2]
[320329133,1711294240697,-318.61844452,0.00018368,2]
[320329134,1711294240707,-318.61844452,0.00018415,2]
[320329135,1711294240716,-318.61844452,0.00018462,2]
[320329136,1711294240725,-1048.61886077,0.00018471,2]
[320329137,1711294240734,-3205.0,0.000185,2]
[320329138,1711294240742,-318.61844452,0.00018509,2]
[320329139,1711294240751,-166.525356,0.00018547,2]
[320329140,1711294240760,-318.61844452,0.00018556,2]
[320329141,1711294240769,-314.02833488,0.0001857,2]
[320329142,1711294240778,-150.0,0.00018571,2]
[320329143,1711294240787,-150.0,0.00018571,2]
[320329144,1711294240797,-150.0,0.00018571,2]
[320329145,1711294240806,-150.0,0.00018571,2]
[320329146,1711294240815,-150.0,0.00018571,2]
[320329147,1711294240824,-150.0,0.00018571,2]
[320329148,1711294240833,-150.0,0.00018571,2]
[320329149,1711294240842,-150.0,0.00018571,2]
[320329150,1711294240851,-318.61844452,0.00018603,2]
[320329151,1711294240860,-173.522977,0.0001863,2]
[320329152,1711294240869,-318.61844452,0.0001865,2]
[320329153,1711294240877,-181.25175159,0.00018662,2]
[320329154,1711294240888,-318.61844452,0.00018697,2]
[320329155,1711294240897,-318.61844452,0.00018744,2]
[320329156,1711294240905,-157.0,0.00018747,2]
[320329157,1711294240914,-1048.61886077,0.00018757,2]
[320329158,1711294240924,-314.02833488,0.00018791,2]
[320329159,1711294240932,-181.31584348,0.00018791,2]
[320329160,1711294240942,-318.61844452,0.00018791,2]
[320329161,1711294240950,-1148.49655861,0.00018791,2]
[320329162,1711294240959,-717.22,0.00018793,2]
[320329163,1711294240968,-184.36834198,0.00018871,2]
[320329164,1711294240977,-882049.38201962,0.0001888,2]
[320329165,1711294240990,-1214.79818361,0.0001888,2]
[320329166,1711294241009,-552.67629212,0.0001888,2]
[320329167,1711294241021,-812.55445059,0.0001888,2]
[320329168,1711294241032,-105681.75203158,0.0001888,2]
[320329169,1711294241043,-403.30535926,0.0001888,2]
[320329170,1711294241054,-344.391636,0.0001888,2]
[320329171,1711294241070,-677.76,0.0001888,2]
[320329172,1711294241081,-1808.3542381,0.0001888,2]
[320329173,1711294241097,-63913.78541095,0.0001888,2]
[320329174,1711294241108,-322.69074248,0.0001888,2]
[320329175,1711294241146,-427.824,0.0001888,2]
[320329178,1711294243005,-395.4307457,0.0001888,2]
[320329179,1711294243047,-1365.89104,0.0001888,2]
[320329180,1711294243060,-1458.78306831,0.0001888,2]
[320329181,1711294243115,-6503.3669986,0.0001888,2]
[320329182,1711294243169,-2514.4738211,0.0001888,2]
[320329183,1711294243182,-16333.05087251,0.0001888,2]
[320329184,1711294243193,-6334.30857607,0.0001888,2]
[320329185,1711294243205,-36473.76283473,0.0001888,2]
[320329186,1711294243218,-3656.42055643,0.0001888,2]
[320329187,1711294243229,-2623.02293,0.0001888,2]
[320329188,1711294243247,-298215.5441439,0.0001888,2]
[320329189,1711294243283,-399.97926511,0.0001888,2]
[320329190,1711294243294,-319.79643839,0.0001888,2]
[320329410,1711294246137,-334.37404656,0.00018879,2]
[320329411,1711294246147,-216.07094298,0.0001888,2]
[320329412,1711294246159,-23765.70794367,0.0001888,2]
[320329413,1711294246241,-3200.0,0.0001888,2]
[320329414,1711294246354,-5332.4724979,0.0001888,2]
[320329415,1711294246367,-39491.57797266,0.0001888,2]
[320329474,1711294660974,1000.0,0.00024,120]
[320329480,1711295075370,-806.18760338,0.00015898,2]
[320329481,1711295075391,-199.06119278,0.00015899,2]
[320329482,1711295075414,-689.99,0.00015914,2]
[320329483,1711295104714,-655.49,0.00015396,2]
[320329484,1711295104736,-250.0,0.00017173,2]
[320329485,1711295104760,-980.98,0.00017222,2]
[320329486,1711295104780,-1513.53,0.00017309,2]
[320329497,1711295366157,-150.0,0.00017088,2]
[320329498,1711295366181,-1850.0,0.00017302,2]
[320329499,1711295367210,-154.36252679,0.00017209,2]
[320329500,1711295367232,-1845.63747321,0.00017302,2]
[320329501,1711295367644,-1501.83352679,0.00017302,2]
[320329502,1711295367666,-114.22,0.00017309,2]
[320329503,1711295367690,-232.88,0.00017311,2]
[320329504,1711295367719,-151.06647321,0.00017316,2]
[320329505,1711295368065,-279.27352679,0.00017316,2]
[320329506,1711295368088,-250.0,0.00017321,2]
[320329507,1711295368114,-158.16,0.00017344,2]
[320329508,1711295368135,-150.0,0.00017362,2]
[320329509,1711295368158,-160.06,0.00017401,2]
[320329510,1711295368180,-840.22,0.00017402,2]
[320329511,1711295368203,-150.0,0.0001745,2]
[320329512,1711295368225,-12.28647321,0.0001745,2]
[320329513,1711295368554,-487.70352679,0.0001745,2]
[320329514,1711295368580,-172.24,0.00017451,2]
[320329515,1711295368605,-1340.05647321,0.00017451,2]
[320329516,1711295368841,-2000.0,0.00017451,2]
[320329517,1711295369263,-2000.0,0.00017451,2]
[320329518,1711295369683,-2000.0,0.00017451,2]
[320329519,1711295370056,-2000.0,0.00017451,2]
[320329520,1711295370424,-2000.0,0.00017451,2]
[320329521,1711295370804,-2000.0,0.00017451,2]
[320329522,1711295371217,-2000.0,0.00017451,2]
[320329523,1711295371860,-2000.0,0.00017451,2]
[320329524,1711295372019,-2000.0,0.00017451,2]
[320329525,1711295372497,-1182.76352679,0.00017451,2]
[320329526,1711295372520,-569.66,0.00017547,2]
[320329530,1711295424510,-1714.0354,0.00017302,2]
[320329531,1711295424531,-285.9646,0.0001766,2]
[320329532,1711295425181,-369.5254,0.0001766,2]
[320329533,1711295425204,-1630.4746,0.00017788,2]
[320329534,1711295426089,-2000.0,0.00017788,2]
[320329535,1711295427115,-1210.4154,0.00017788,2]
[320329536,1711295427140,-789.5846,0.00017797,2]
[320329538,1711295428247,-210.4054,0.00017797,2]
[320329539,1711295428272,-1789.5946,0.00017837,2]
[320329540,1711295429784,-1356.68600071,0.00017837,2]
[320329541,1711295429808,-241.84,0.00017864,2]
[320329548,1711295432145,-299.99,0.00017899,2]
[320329549,1711295432906,-402.76,0.00017899,2]
[320329550,1711295432916,-186.53039198,0.00018,2]
[320329551,1711295432925,-88.16338371,0.00018016,2]
[320329552,1711295432937,-211.83661629,0.00018016,2]
[320329553,1711295432947,-167.0,0.00018113,2]
[320329554,1711295432957,-172.24,0.0001836,2]
[320329555,1711295432966,-150.0,0.00018492,2]
[320329556,1711295432976,-1002.78207322,0.000185,2]
[320329557,1711295432986,-693.0,0.000185,2]
[320329558,1711295432995,-154.3652704,0.00018603,2]
[320329559,1711295433005,-178.22273058,0.00018673,2]
[320329560,1711295433015,-949.2940171,0.00018678,2]
[320329562,1711295433150,-389.22410135,0.00018678,2]
[320329563,1711295433171,-2106.57918155,0.00018678,2]
[320329564,1711295433180,-640.70364251,0.0001868,2]
[320329565,1711295433190,-3000.0,0.0001869,2]
[320329566,1711295433200,-33766.03715979,0.000187,2]
[320329567,1711295433209,-151.49768871,0.00018707,2]
[320329568,1711295433220,-198.96668167,0.00018776,2]
[320329569,1711295433230,-740.91562396,0.00018777,2]
[320329570,1711295433240,-676.7499,0.00018778,2]
[320329571,1711295433255,-518496.1354,0.00018778,2]
[320329572,1711295433265,-408.6092,0.0001878,2]
[320329573,1711295433277,-4808.94454788,0.0001878,2]
[320329574,1711295433296,-154.88236009,0.00018781,2]
[320329575,1711295433305,-153.58189298,0.00018834,2]
[320329576,1711295433317,-150.3576986,0.00018841,2]
[320329577,1711295433326,-640.70364247,0.00018854,2]
[320329578,1711295433335,-7207.42010454,0.00018877,2]
[320329579,1711295433345,-3359.5909251,0.00018877,2]
[320329580,1711295433355,-102649.55495491,0.00018878,2]
[320329581,1711295433364,-278.06273842,0.00018879,2]
[320329582,1711295433374,-2134.34057903,0.00018879,2]
[320329583,1711295433383,-746.0,0.0001888,2]
[320329584,1711295433393,-226811.92826,0.0001888,2]
[320329585,1711295433405,-4667.8898176,0.0001888,2]
[320329589,1711295438110,-167490.94401359,0.0001888,2]
[320329590,1711295438123,-16964.38650768,0.0001888,2]
[320329591,1711295438135,-18855.20098626,0.0001888,2]
[320329592,1711295438168,-108404.64854715,0.0001888,2]
[320329593,1711295438179,-2701.23999999,0.0001888,2]
[320329594,1711295438235,-11221.98166175,0.0001888,2]
[320329595,1711295438250,-18199.93411891,0.0001888,2]
[320329596,1711295438310,-1634.8344,0.0001888,2]
[320329597,1711295438399,-1289.66076782,0.0001888,2]
[320329618,1711295440533,-500.44381804,0.0001888,2]
[320329619,1711295440549,-166.55618196,0.0001888,2]
[320329620,1711295440559,-1450.03012836,0.0001888,2]
[320329621,1711295440571,-587.57672739,0.0001888,2]
[320329624,1711295443152,-181.47,0.00018355,2]
[320329625,1711295443162,-300.0,0.00018879,2]
[320329626,1711295443171,-220759.16707822,0.0001888,2]
[320329627,1711295443209,-2393.06490202,0.0001888,2]
[320329628,1711295443220,-851.46564454,0.0001888,2]
[320329629,1711295443231,-657.3,0.0001888,2]
[320329630,1711295443242,-485.29999995,0.0001888,2]
[320329631,1711295443322,-1000.0,0.0001888,2]
[320329632,1711295443547,-923.66741,0.0001888,2]
[320329662,1711295446518,-238.35888578,0.00018879,2]
[320329663,1711295446528,-155.0,0.00018879,2]
[320329664,1711295446537,-6181.34099422,0.0001888,2]
[320329665,1711295446577,-609.89,0.0001888,2]
[320329828,1711295451253,401.47399929,0.00017547,2]
[320329829,1711295451276,30.93066378,0.00017547,2]
[320329830,1711295457892,1969.06933622,0.00017547,2]
[320329831,1711295457916,2000.0,0.00017547,2]
[320329832,1711295457938,2000.0,0.00017547,2]
[320329833,1711295457960,2000.0,0.00017547,2]
[320329834,1711295457983,2000.0,0.00017547,2]
[320329835,1711295469495,-965.71232123,0.00017547,2]
[320329840,1711295471207,384.29213247,0.00017547,2]
[320329841,1711295483882,649.9955463,0.00017547,2]
[320329842,1711295483903,2000.0,0.00017547,2]
[320329843,1711295491618,-2000.0,0.00017547,2]
[320329844,1711295491904,-2000.0,0.00017547,2]
[320329845,1711295492238,-2000.0,0.00017547,2]
[320329846,1711295493205,-2000.0,0.00017547,2]
[320329847,1711295493445,1258.84831319,0.0001,2]
[320329848,1711295493725,-2000.0,0.00017547,2]
[320329849,1711295514820,-189.92890188,0.00017545,2]
[320329850,1711295514842,-155.0,0.00017546,2]
[320329851,1711295514865,-155.15011316,0.00017546,2]
[320329852,1711295514889,-376.92098496,0.00017546,2]
[320329853,1711295538615,-205.48193749,0.00015499,2]
[320329854,1711295538638,-40.51806251,0.00015499,2]
[320329855,1711295557530,-589.66364102,0.00015,2]
[320329856,1711295557551,-1380.73211473,0.00015498,2]
[320329857,1711295557572,-29.60424425,0.00015498,2]
[320329858,1711295558391,-125.39575575,0.00015498,2]
[320329859,1711295558412,-573.53175189,0.00015499,2]
[320329860,1711295558432,-1301.07249236,0.000155,2]
[320329861,1711295558997,-225.21898278,0.000155,2]
[320329862,1711295563239,1774.78101722,0.00014999,2]
[320329863,1711295563262,62.2014287,0.00014999,2]
[320329873,1711295668928,1937.7985713,0.00015,2]
[320329874,1711295668952,1268.81565508,0.00015,2]
[320329878,1711295676975,703.38379531,0.00022,120]
[320329882,1711295712626,731.18434492,0.00015405,2]
[320329883,1711295712649,1021.96388888,0.00015405,2]
[320329890,1711295895184,2062.0,0.00023,120]
[320329897,1711296120704,702.34,0.00014157,2]
[320329911,1711296507057,275.69611112,0.00014157,2]
[320329912,1711296507077,2000.0,0.00014157,2]
[320329913,1711296507099,2000.0,0.00014157,2]
[320329914,1711296507119,2000.0,0.00014157,2]
[320329915,1711296507142,2000.0,0.00014157,2]
[320329916,1711296507163,2000.0,0.00014157,2]
[320329917,1711296507187,2000.0,0.00014157,2]
[320329918,1711296507209,2000.0,0.00014157,2]
[320329919,1711296507231,2000.0,0.00014157,2]
[320329920,1711296507251,2000.0,0.00014157,2]
[320330065,1711296632778,-4288.39688958,0.00014051,2]
[320330066,1711296632791,-611.97438854,0.00014051,2]
[320330067,1711296632834,-1032.73592212,0.00014051,2]
[320330068,1711296632845,-1058.39529179,0.00014051,2]
[320330069,1711296632891,-885.77788116,0.00014051,2]
[320330070,1711296632949,-11288.33849735,0.00014051,2]
[320330201,1711296638296,-4041.92932226,0.00014051,2]
[320330203,1711296638305,-1170.27889804,0.00014051,2]
[320330315,1711296639349,-2103.3787534,0.00014051,2]
[320330316,1711296639367,-88.18414888,0.00014051,2]
[320330317,1711296639377,-5942.00829452,0.00014051,2]
[320330318,1711296639387,-4699.05764962,0.00014052,2]
[320330319,1711296639397,-679.96641741,0.00014053,2]
[320330320,1711296639406,-155.0,0.00014053,2]
[320330321,1711296639415,-1054.28722025,0.00014054,2]
[320330322,1711296639424,-205.12684222,0.00014054,2]
[320330323,1711296639434,-210.13818011,0.00014055,2]
[320330324,1711296639443,-2345.0082051,0.00014124,2]
[320330325,1711296639452,-2977.28553008,0.00014124,2]
[320330326,1711296639461,-667.22,0.00014125,2]
[320330327,1711296639470,-164.30115815,0.00014147,2]
[320330328,1711296639480,-1309.94486352,0.00014156,2]
[320330329,1711296639489,-191894.92634155,0.00014157,2]
[320330330,1711296639501,-282.48007,0.00014157,2]
[320330331,1711296639512,-1904.99995,0.00014157,2]
[320330332,1711296639536,-896.4325,0.00014157,2]
[320330333,1711296639547,-4610.32143468,0.00014157,2]
[320330334,1711296639561,-1891.79918381,0.00014157,2]
[320330335,1711296639572,-251823.65119794,0.00014157,2]
[320330336,1711296639583,-849.20089223,0.00014157,2]
[320330337,1711296639594,-1991.03704535,0.00014157,2]
[320330338,1711296639606,-505.090632,0.00014157,2]
[320330339,1711296639624,-656.36656359,0.00014157,2]
[320330340,1711296639641,-2235.66313192,0.00014157,2]
[320330341,1711296640345,-354.0880191,0.00014157,2]
[320330342,1711296640358,-94778.93113684,0.00014157,2]
[320330343,1711296640401,-281.72,0.00014157,2]
[320330344,1711296640412,-1280.85651302,0.00014157,2]
[320330345,1711296640424,-619.12426757,0.00014157,2]
[320330346,1711296640455,-25461.23451674,0.00014157,2]
[320330347,1711296640467,-617.9778247,0.00014157,2]
[320330348,1711296640513,-2552.57960418,0.00014157,2]
[320330349,1711296640571,-9331.35903635,0.00014157,2]
[320330350,1711296640583,-600.26829183,0.00014157,2]
[320330351,1711296640751,-1959.52999834,0.00014157,2]
[320330358,1711296643383,-23870.90542646,0.00014157,2]
[320330359,1711296643395,-2076.40959962,0.00014157,2]
[320330360,1711296643677,-7146.85354648,0.00014157,2]
[320330361,1711296643688,-15942.75,0.00014157,2]
[320330362,1711296643700,-3108.16485935,0.00014157,2]
[320330363,1711296643711,-4145.84348455,0.00014157,2]
[320330364,1711296643725,-3181.55354912,0.00014157,2]
[320330365,1711296643755,-3898.26590367,0.00014157,2]
[320330366,1711296643791,-344910.71222548,0.00014157,2]
[320330368,1711296643800,-3935.91545354,0.00015,2]
[320330369,1711296643809,-815.17550083,0.00015614,2]
[320330370,1711296643819,-2057.28397905,0.00015818,2]
[320330371,1711296643828,-1211.38,0.00015875,2]
[320330372,1711296643839,-2000.0,0.00015891,2]
[320330373,1711296643848,-160.47633657,0.00015922,2]
[320330375,1711296643857,-893.5695,0.00015922,2]
[320330377,1711296643866,-499.99,0.00015922,2]
[320330378,1711296643875,-4760.37,0.00015964,2]
[320330379,1711296643884,-1376.79,0.00015965,2]
[320330380,1711296643893,-261.94,0.00015978,2]
[320330381,1711296643902,-1044.94,0.00015978,2]
[320330382,1711296643913,-315.65,0.00015978,2]
[320330383,1711296643922,-655.72,0.00015985,2]
[320330384,1711296643931,-5370.12,0.00016116,2]
[320330385,1711296643940,-250.0,0.00016118,2]
[320330386,1711296643950,-150.99,0.00016118,2]
[320330387,1711296643959,-344.28,0.00016125,2]
[320330388,1711296643968,-250.0,0.00016137,2]
[320330389,1711296643977,-502.44,0.00016138,2]
[320330390,1711296643986,-320.0,0.00016138,2]
[320330391,1711296643996,-815.17550081,0.00016226,2]
[320330392,1711296644005,-157.87,0.0001625,2]
[320330393,1711296644014,-667.22,0.00016389,2]
[320330394,1711296644023,-14931.86166925,0.00016428,2]
[320330395,1711296644034,-157.87,0.00016461,2]
[320330396,1711296644044,-165.78,0.00016627,2]
[320330397,1711296644054,-153.99,0.0001666,2]
[320330398,1711296644064,-157.87,0.00016673,2]
[320330399,1711296644073,-153.99,0.00016707,2]
[320330400,1711296644082,-153.99,0.00016755,2]
[320330401,1711296644091,-151.23,0.00016794,2]
[320330402,1711296644100,-150.99,0.00016803,2]
[320330403,1711296644109,-153.99,0.00016803,2]
[320330404,1711296644118,-815.17550081,0.00016839,2]
[320330405,1711296644127,-153.99,0.0001685,2]
[320330406,1711296644135,-157.87,0.00016885,2]
[320330407,1711296644144,-153.99,0.00016898,2]
[320330408,1711296644154,-153.99,0.00016945,2]
[320330409,1711296644163,-150.0,0.00016989,2]
[320330410,1711296644172,-150.0,0.00016989,2]
[320330411,1711296644181,-150.0,0.00016989,2]
[320330412,1711296644190,-150.0,0.00016989,2]
[320330413,1711296644200,-150.0,0.00016989,2]
[320330414,1711296644209,-153.99,0.00016993,2]
[320330415,1711296644218,-2339.2457,0.00016997,2]
[320330416,1711296644227,-157.87,0.00017096,2]
[320330417,1711296644238,-3146.28060071,0.00017098,2]
[320330418,1711296644249,-150.0,0.00017304,2]
[320330419,1711296644259,-3676.5131,0.00017346,2]
[320330420,1711296644268,-292.21,0.00017362,2]
[320330421,1711296644277,-213.50554888,0.00017369,2]
[320330422,1711296644287,-1062.77022117,0.00017446,2]
[320330423,1711296644296,-298.33166403,0.00017446,2]
[320330424,1711296644305,-4597.5355,0.00017446,2]
[320330425,1711296644314,-2399.6467,0.00017446,2]
[320330426,1711296644323,-1931.8264,0.00017446,2]
[320330427,1711296644332,-2732.6635,0.00017446,2]
[320330428,1711296644341,-2500.0,0.00017446,2]
[320330429,1711296644351,-815.17550081,0.00017451,2]
[320330430,1711296644360,-171.405401,0.00017534,2]
[320330431,1711296644369,-454.52,0.00017536,3]
[320330432,1711296644378,-278.60258126,0.00017544,2]
[320330433,1711296644387,-155.36878202,0.00017544,2]
[320330434,1711296644396,-1587.5872239,0.00017544,2]
[320330435,1711296644405,-157.80815582,0.00017544,2]
[320330436,1711296644414,-374.03634039,0.00017544,2]
[320330437,1711296644423,-155.0,0.00017544,2]
[320330438,1711296644432,-267.87154933,0.00017545,2]
[320330439,1711296644441,-2463.12748958,0.00017545,2]
[320330440,1711296644475,-250.0,0.00017545,2]
[320330441,1711296644488,-816.55459258,0.00017545,2]
[320330442,1711296644497,-149.07990242,0.00017546,2]
[320330443,1711296644509,-1010.81047456,0.00017546,2]
[320330444,1711296644534,-1661.60734328,0.00017546,2]
[320330445,1711296646847,-511.36027468,0.00017546,2]
[320330446,1711296646860,-14603.12845666,0.00017546,2]
[320330447,1711296646869,-584.976,0.00017546,2]
[320330448,1711296646878,-627.16641286,0.00017546,2]
[320330449,1711296646887,-1251.84359666,0.00017547,2]
[320330450,1711296646897,-300.0,0.0001756,2]
[320330451,1711296646911,-150.0,0.00017618,2]
[320330452,1711296646922,-2109.86545614,0.00017707,2]
[320330453,1711296646958,-391.12758198,0.00017707,2]
[320330454,1711296646968,-65.35188044,0.00017779,2]
[320330455,1711296646979,-232.97978355,0.00017779,2]
[320330456,1711296646990,-1062.77022114,0.00017797,2]
[320330457,1711296646998,-200.0,0.00017813,2]
[320330458,1711296647008,-160.47633656,0.000179,2]
[320330459,1711296647017,-5502.84431584,0.000179,2]
[320330460,1711296647026,-1163.1363587,0.000179,2]
[320330461,1711296647035,-1163.13635856,0.000179,2]
[320330462,1711296647045,-1163.13635856,0.000179,2]
[320330463,1711296647054,-1163.13635856,0.000179,2]
[320330464,1711296647064,-883.37232285,0.000179,2]
[320330465,1711296647073,-1163.13635856,0.000179,2]
[320330466,1711296647082,-1163.13635856,0.000179,2]
[320330467,1711296647091,-1163.13635856,0.000179,2]
[320330468,1711296647101,-1163.13635856,0.000179,2]